bitfinex/quotes_BTCUSD_20250406
["timestamp","ask_amount","ask_price","bid_price","bid_amount"]
[1743956768222,4e-07,82355.0,82354.0,1.92471411]
[1743956768808,4e-07,82355.0,82354.0,1.78735411]
[1743956769010,4e-07,82355.0,82354.0,1.92463411]
[1743956769011,0.0487004,82355.0,82354.0,1.92463411]
[1743956771387,0.0487004,82355.0,82354.0,1.78735411]
[1743956771594,0.0487004,82355.0,82354.0,1.92459411]
[1743956772727,0.0487004,82355.0,82354.0,1.91553623]
[1743956773902,0.0487004,82355.0,82354.0,1.87774174]
[1743956774052,0.0487004,82355.0,82354.0,1.91560193]
[1743956774553,0.0487004,82355.0,82354.0,1.87774174]
[1743956777690,4e-07,82355.0,82354.0,1.87774174]
[1743956777912,4e-07,82355.0,82354.0,1.91559182]
[1743956778111,4e-07,82355.0,82354.0,1.92464755]
[1743956778919,4e-07,82355.0,82354.0,1.94964755]
[1743956779320,4e-07,82355.0,82354.0,1.94964686]
[1743956779550,4e-07,82355.0,82354.0,1.86140686]
[1743956779721,4e-07,82355.0,82354.0,1.99872686]
[1743956786655,4e-07,82355.0,82354.0,2.04822686]
[1743956791099,4e-07,82355.0,82354.0,2.04814686]
[1743956791511,4e-07,82355.0,82354.0,1.94964686]
[1743956791712,4e-07,82355.0,82354.0,1.78740686]
[1743956791911,4e-07,82355.0,82354.0,1.92464686]
[1743956794612,4e-07,82355.0,82354.0,1.78740686]
[1743956794816,4e-07,82355.0,82354.0,1.92464686]
[1743956796983,4e-07,82355.0,82354.0,1.91559113]
[1743956797397,4e-07,82355.0,82354.0,1.94059113]
[1743956801049,4e-07,82355.0,82354.0,1.80335113]
[1743956801476,4e-07,82355.0,82354.0,1.77835113]
[1743956801713,0.0987004,82355.0,82354.0,1.87774105]
[1743956802186,0.11324125,82355.0,82354.0,1.34163808]
[1743956802737,0.10110125,82355.0,82354.0,1.34163808]
[1743956804394,0.10110125,82355.0,82354.0,1.20439808]
[1743956806215,0.10110125,82355.0,82354.0,1.34163808]
[1743956808769,0.10143325,82355.0,82354.0,1.34163808]
[1743956812386,0.10143325,82355.0,82354.0,1.05635008]
[1743956812387,0.28857025,82355.0,82354.0,1.05635008]
[1743956812556,0.62857025,82355.0,82354.0,1.05635008]
[1743956812758,0.64271705,82355.0,82354.0,1.05635008]
[1743956812977,0.64271705,82355.0,82354.0,1.048766]
[1743956816769,0.64271705,82355.0,82354.0,0.000166]
[1743956823783,0.170002,82352.0,82348.0,0.26201068]
[1743956823989,0.01454085,82351.0,82348.0,0.26201068]
[1743956824190,0.033651,82351.0,82350.0,0.182149]
[1743956824398,0.028651,82351.0,82350.0,0.182149]
[1743956825416,0.028651,82351.0,82350.0,0.18973596]
[1743956827963,0.028651,82351.0,82350.0,0.32701596]
[1743956831449,0.01411015,82351.0,82350.0,0.44991893]
[1743956831939,0.01454085,82354.0,82353.0,0.182141]
[1743956832147,0.01454085,82354.0,82353.0,0.18972796]
[1743956832908,0.02942504,82354.0,82353.0,0.18972796]
[1743956834686,0.02942504,82354.0,82353.0,0.18989396]
[1743956841069,0.06942504,82354.0,82353.0,0.18989396]
[1743956841279,0.02942504,82354.0,82353.0,0.18989396]
[1743956841858,0.02942504,82354.0,82353.0,0.32717396]
[1743956842756,0.02942504,82354.0,82353.0,0.18989396]
[1743956842967,0.02942504,82354.0,82353.0,0.32717396]
[1743956846781,0.02942504,82354.0,82353.0,0.14503296]
[1743956847198,0.03442504,82354.0,82353.0,0.00775296]
[1743956847376,0.09336704,82354.0,82353.0,0.14503296]
[1743956847575,0.43336704,82354.0,82353.0,0.14503296]
[1743956848138,0.43369904,82354.0,82353.0,0.14503296]
[1743956848874,0.43369904,82354.0,82353.0,0.137446]
[1743956850491,0.43369904,82354.0,82353.0,0.000166]
[1743956854044,0.70369904,82354.0,82353.0,0.000166]
[1743956854266,0.43369904,82354.0,82353.0,0.000166]
[1743956854940,0.02975704,82354.0,82353.0,0.182307]
[1743956855183,0.01521619,82354.0,82353.0,0.182307]
[1743956855423,0.01521619,82354.0,82353.0,0.18989384]
[1743956855626,0.000332,82354.0,82353.0,0.18989384]
[1743956856301,0.000332,82354.0,82353.0,0.36159681]
[1743956856525,0.000332,82354.0,82353.0,0.30520997]
[1743956857182,0.000332,82354.0,82353.0,0.44248997]
[1743956862635,0.000332,82354.0,82353.0,0.53868997]
[1743956863120,0.000332,82354.0,82353.0,0.57656312]
[1743956863604,0.000332,82354.0,82353.0,0.58414802]
[1743956864518,0.000332,82354.0,82353.0,0.57656312]
[1743956865278,0.000332,82354.0,82353.0,0.53868997]
[1743956865480,0.000332,82354.0,82353.0,0.54627472]
[1743956865822,0.000332,82354.0,82353.0,0.58410431]
[1743956866050,0.000332,82354.0,82353.0,0.55843124]
[1743956866300,0.000332,82355.0,82354.0,0.108342]
[1743956866534,0.000332,82355.0,82354.0,0.27150252]
[1743956866772,0.000332,82355.0,82354.0,0.2690746]
[1743956867005,0.000332,82355.0,82354.0,0.27665935]
[1743956867851,0.000332,82355.0,82354.0,0.41389935]
[1743956868599,0.000332,82355.0,82354.0,0.27665935]
[1743956868833,0.000332,82355.0,82354.0,0.41389935]
[1743956869529,1e-06,82355.0,82354.0,0.77889935]
[1743956871538,1e-06,82355.0,82354.0,1.19209935]
[1743956871745,6e-07,82375.0,82374.0,0.012139]
[1743956872072,0.00013743,82375.0,82374.0,0.37679414]
[1743956872274,0.00013743,82375.0,82374.0,0.37436672]
[1743956873662,0.00013743,82375.0,82374.0,0.38325732]
[1743956877265,4.3e-07,82375.0,82374.0,0.38325732]
[1743956877460,4.3e-07,82375.0,82374.0,0.79645732]
[1743956877665,4.3e-07,82375.0,82374.0,1.15387257]
[1743956878850,4.3e-07,82375.0,82374.0,1.01663257]
[1743956879051,4.3e-07,82375.0,82374.0,1.15383257]
[1743956881295,4.3e-07,82375.0,82374.0,2.20207257]
[1743956886558,4.3e-07,82375.0,82374.0,2.20240457]
[1743956888987,6.3e-07,82392.0,82391.0,0.182058]
[1743956889203,4.622e-05,82392.0,82391.0,0.94882097]
[1743956890345,4.622e-05,82392.0,82391.0,0.96078954]
[1743956890864,4.622e-05,82392.0,82391.0,0.98578954]
[1743956892640,4.622e-05,82392.0,82391.0,0.84862954]
[1743956892826,4.622e-05,82392.0,82391.0,0.98578954]
[1743956893782,4.622e-05,82392.0,82391.0,0.99337032]
[1743956897098,4.622e-05,82392.0,82391.0,0.94677032]
[1743956898608,4.622e-05,82392.0,82391.0,0.76271032]
[1743956898813,4.622e-05,82392.0,82391.0,0.89987032]
[1743956900361,4.622e-05,82392.0,82391.0,1.94787032]
[1743956900990,4.622e-05,82392.0,82391.0,2.03071723]
[1743956901184,2.2e-07,82392.0,82391.0,2.03071723]
[1743956902267,2.2e-07,82392.0,82391.0,1.98561723]
[1743956904907,2.2e-07,82392.0,82391.0,1.96061723]
[1743956905074,2.2e-07,82392.0,82391.0,1.98561723]
[1743956913303,0.00016622,82392.0,82391.0,1.98557723]
[1743956913826,0.00016622,82392.0,82391.0,1.84845723]
[1743956914226,0.00016622,82392.0,82391.0,1.98557723]
[1743956915185,0.00016622,82392.0,82391.0,1.84845723]
[1743956915387,0.00016622,82392.0,82391.0,1.98557723]
[1743956919850,2.2e-07,82392.0,82391.0,1.98557723]
[1743956920628,2.2e-07,82392.0,82391.0,2.03267723]
[1743956923395,2.2e-07,82392.0,82391.0,2.04156649]
[1743956925500,2.2e-07,82392.0,82391.0,1.90444649]
[1743956925725,2.2e-07,82392.0,82391.0,2.04156649]
[1743956925952,2.2e-07,82392.0,82391.0,2.04189849]
[1743956926118,2.2e-07,82399.0,82398.0,0.182043]
[1743956926317,2.2e-07,82399.0,82398.0,0.36769288]
[1743956926744,2.2e-07,82399.0,82398.0,0.38416292]
[1743956927554,2.2e-07,82399.0,82398.0,0.39308063]
[1743956927889,2.2e-07,82399.0,82398.0,0.50520063]
[1743956928555,2.2e-07,82399.0,82398.0,0.36808063]
[1743956928889,2.2e-07,82399.0,82398.0,0.50520063]
[1743956929776,2.2e-07,82399.0,82398.0,0.49631137]
[1743956933888,2.2e-07,82399.0,82398.0,1.54415137]
[1743956935787,2.2e-07,82399.0,82398.0,1.40703137]
[1743956936032,2.2e-07,82399.0,82398.0,1.22498837]
[1743956936224,0.12367707,82399.0,82398.0,1.19254078]
[1743956936449,0.13582688,82399.0,82398.0,1.19254078]
[1743956936683,0.47850595,82399.0,82398.0,1.19254078]
[1743956936922,0.017136,82397.0,82396.0,0.01223418]
[1743956937110,0.03887685,82397.0,82396.0,0.00503418]
[1743956937349,0.09214377,82397.0,82396.0,0.00503418]
[1743956937524,0.09164377,82397.0,82396.0,0.00503418]
[1743956938999,0.012137,82392.0,82391.0,0.000332]
[1743956939203,0.54159685,82392.0,82391.0,0.000332]
[1743956939415,0.55629584,82392.0,82391.0,0.000332]
[1743956939612,0.37423984,82392.0,82391.0,0.000332]
[1743956939819,0.38637684,82392.0,82391.0,0.000332]
[1743956940239,0.41987684,82392.0,82391.0,0.000332]
[1743956944853,0.54277981,82392.0,82391.0,0.000332]
[1743956945055,0.54277981,82392.0,82375.0,0.000332]
[1743956945056,0.53663185,82376.0,82375.0,0.000332]
[1743956945294,0.53663185,82376.0,82375.0,0.00037759]
[1743956945295,0.66453482,82376.0,82375.0,0.00037759]
[1743956945514,0.67904184,82376.0,82375.0,0.00037759]
[1743956946263,0.71224184,82376.0,82375.0,0.00037759]
[1743956947127,0.71224184,82376.0,82343.0,0.0002061]
[1743956947128,0.54170285,82344.0,82343.0,0.0002061]
[1743956947302,0.54170285,82344.0,82343.0,0.00034293]
[1743956947501,0.55589097,82344.0,82343.0,0.00034293]
[1743956948149,0.56793968,82344.0,82343.0,0.00034293]
[1743956948349,0.55589097,82344.0,82343.0,0.00034293]
[1743956951661,0.56786187,82344.0,82343.0,0.00034293]
[1743956967246,0.69076484,82344.0,82343.0,0.00034293]
[1743956968098,0.54173985,82327.0,82326.0,0.00883004]
[1743956968411,0.54173985,82327.0,82326.0,0.00013686]
[1743956968596,0.6786292,82327.0,82326.0,0.00013686]
[1743956971451,0.67500449,82327.0,82326.0,0.00013686]
[1743956977943,0.67843398,82327.0,82326.0,0.00013686]
[1743956979665,0.67497467,82327.0,82326.0,0.00013686]
[1743956980098,0.67836991,82327.0,82326.0,0.00013686]
[1743956980311,0.67836991,82327.0,82326.0,8.6e-07]
[1743956980461,0.52221,82322.0,82321.0,0.00386401]
[1743956980659,0.65965382,82322.0,82321.0,0.00386401]
[1743956980864,0.67336123,82322.0,82321.0,0.00386401]
[1743956981286,0.67836123,82322.0,82321.0,0.00386401]
[1743956981457,0.71076123,82322.0,82321.0,0.00386401]
[1743956981653,0.7476293,82322.0,82321.0,0.00386401]
[1743956982453,0.71076123,82322.0,82321.0,0.00386401]
[1743956983662,0.70733437,82322.0,82321.0,0.00386401]
[1743956985281,0.70733437,82322.0,82321.0,0.00025039]
[1743956986831,0.53676885,82314.0,82313.0,0.0003316]
[1743956987344,0.54704585,82314.0,82313.0,0.0003316]
[1743956989534,0.67494882,82314.0,82313.0,0.0003316]
[1743956991143,0.67831015,82314.0,82313.0,0.0003316]
[1743956991380,0.67482785,82314.0,82313.0,0.0003316]
[1743956995650,0.67821319,82314.0,82313.0,0.0003316]
[1743956996006,0.67482674,82314.0,82313.0,0.0003316]
[1743957000190,0.67821171,82314.0,82313.0,0.0003316]
[1743957001207,0.67321171,82314.0,82313.0,0.0003316]
[1743957001436,0.54076789,82314.0,82313.0,0.0003316]
[1743957001755,0.55530874,82314.0,82313.0,0.0003316]
[1743957002011,0.54076789,82314.0,82313.0,0.0003316]
[1743957003467,0.67821171,82314.0,82313.0,0.0003316]
[1743957004728,0.55530874,82314.0,82313.0,0.0003316]
[1743957006447,0.55530874,82314.0,82313.0,0.0975316]
[1743957007370,0.54076789,82314.0,82313.0,0.0975316]
[1743957007731,0.55530874,82314.0,82313.0,0.0975316]
[1743957010034,0.01853989,82314.0,82313.0,0.0975316]
[1743957010224,0.55530874,82314.0,82313.0,0.0975316]
[1743957017616,0.55160489,82314.0,82313.0,0.0975316]
[1743957018660,0.59160489,82314.0,82313.0,0.0975316]
[1743957018810,0.55160489,82314.0,82313.0,0.0975316]
[1743957021870,0.55160489,82314.0,82313.0,0.2348116]
[1743957023866,0.55160489,82314.0,82313.0,0.53994457]
[1743957023867,0.00983604,82314.0,82313.0,0.53994457]
[1743957024361,0.0003322,82321.0,82320.0,0.276615]
[1743957024539,0.0003322,82321.0,82320.0,0.39951797]
[1743957024740,0.01022452,82321.0,82320.0,0.39951797]
[1743957024946,0.0003322,82321.0,82320.0,0.39951797]
[1743957026996,0.005,82329.0,82328.0,0.182197]
[1743957027299,0.005,82329.0,82328.0,0.21730297]
[1743957027594,0.005,82329.0,82328.0,0.35458297]
[1743957027741,0.01489374,82329.0,82328.0,0.36672897]
[1743957028400,0.005,82329.0,82328.0,0.36672897]
[1743957028798,0.01489374,82329.0,82328.0,0.36672897]
[1743957029022,0.005,82329.0,82328.0,0.36672897]
[1743957029217,0.01489941,82329.0,82328.0,0.36672897]
[1743957031491,0.005,82329.0,82328.0,0.36672897]
[1743957031891,0.01954085,82332.0,82331.0,0.057446]
[1743957032112,0.01454085,82332.0,82331.0,0.227491]
[1743957032312,0.0277514,82332.0,82331.0,0.227491]
[1743957032510,0.01454085,82332.0,82331.0,0.227491]
[1743957032711,0.005,82332.0,82331.0,0.227491]
[1743957033119,0.01821055,82332.0,82331.0,0.227491]
[1743957033446,0.01821055,82332.0,82331.0,0.18254]
[1743957034820,0.01821055,82332.0,82331.0,0.194686]
[1743957035263,0.01321055,82332.0,82331.0,0.194686]
[1743957035463,0.01821055,82332.0,82331.0,0.194686]
[1743957035677,0.005,82332.0,82331.0,0.194686]
[1743957039485,0.065,82332.0,82331.0,0.194686]
[1743957039824,0.01828502,82332.0,82331.0,0.194686]
[1743957040198,0.005,82332.0,82331.0,0.194686]
[1743957041990,0.00496,82332.0,82331.0,0.194686]
[1743957045643,0.0052922,82332.0,82331.0,0.194686]
[1743957045847,0.0003322,82332.0,82331.0,0.31758897]
[1743957051886,0.0003322,82332.0,82331.0,1.36654897]
[1743957052207,0.0803322,82332.0,82331.0,1.36654897]
[1743957052409,0.0003322,82332.0,82331.0,1.36654897]
[1743957054537,0.0003322,82332.0,82331.0,1.35440297]
[1743957054729,0.03197805,82332.0,82331.0,1.23146]
[1743957055113,0.04537601,82332.0,82331.0,1.04896]
[1743957055326,0.04537601,82332.0,82331.0,1.18616]
[1743957055540,0.38537601,82332.0,82331.0,1.04896]
[1743957056721,0.017106,82327.0,82326.0,0.1372]
[1743957056933,0.21509848,82327.0,82326.0,0.1372]
[1743957057421,0.03289948,82327.0,82326.0,0.1372]
[1743957057622,0.03289948,82327.0,82326.0,0.367401]
[1743957059031,0.03289948,82327.0,82326.0,0.197346]
[1743957059239,0.03289948,82327.0,82326.0,0.1852]
[1743957061275,0.03289948,82327.0,82326.0,0.52365797]
[1743957061276,0.01339863,82327.0,82326.0,0.52365797]
[1743957061447,0.01339863,82327.0,82326.0,1.62273218]
[1743957061665,0.0003322,82332.0,82331.0,0.276091]
[1743957061875,0.0003322,82332.0,82331.0,0.39899397]
[1743957064991,0.0003322,82332.0,82331.0,0.53619397]
[1743957071085,0.000332,82353.0,82331.0,0.53619397]
[1743957071086,0.000332,82353.0,82336.0,0.280779]
[1743957071283,0.000332,82353.0,82336.0,0.40368197]
[1743957071534,0.000332,82353.0,82336.0,0.44150523]
[1743957072297,0.000332,82353.0,82342.0,0.182166]
[1743957072496,0.000332,82353.0,82342.0,0.40609735]
[1743957072698,0.000332,82353.0,82342.0,0.40366897]
[1743957073974,0.000332,82353.0,82342.0,0.4248938]
[1743957075586,0.000332,82353.0,82342.0,0.4248538]
[1743957077952,0.000332,82353.0,82352.0,0.278043]
[1743957078150,0.000332,82353.0,82352.0,0.53810597]
[1743957081910,0.000332,82353.0,82352.0,1.58674597]
[1743957083295,0.000332,82353.0,82352.0,1.61174597]
[1743957088646,0.000332,82353.0,82352.0,2.02494597]
[1743957090474,0.000332,82353.0,82352.0,1.99994597]
[1743957093174,0.00020692,82353.0,82352.0,1.99994597]
[1743957097082,0.00020692,82353.0,82352.0,1.86278597]
[1743957097256,0.00020692,82353.0,82352.0,1.99990597]
[1743957097458,0.00020692,82353.0,82352.0,1.95250597]
[1743957097958,0.00020692,82353.0,82352.0,1.81538597]
[1743957098189,0.00020692,82353.0,82352.0,1.72186297]
[1743957098360,0.00020692,82353.0,82352.0,1.73400497]
[1743957102068,0.01020692,82353.0,82352.0,1.73400497]
[1743957102264,0.00020692,82353.0,82352.0,1.73400497]
[1743957104615,0.17516592,82353.0,82352.0,1.04864]
[1743957104921,0.18730792,82353.0,82352.0,1.18576]
[1743957105259,0.21329118,82353.0,82352.0,1.04864]
[1743957105432,0.21329118,82353.0,82352.0,1.18576]
[1743957108286,0.03115018,82353.0,82352.0,1.18576]
[1743957108491,0.20114918,82353.0,82352.0,1.18576]
[1743957108643,0.18970677,82353.0,82352.0,1.18576]
[1743957108868,0.20115674,82353.0,82352.0,1.18576]
[1743957109070,0.21329874,82353.0,82352.0,1.18576]
[1743957112818,0.03115774,82353.0,82352.0,1.18576]
[1743957114141,0.07115774,82353.0,82352.0,1.18576]
[1743957114287,0.03115774,82353.0,82352.0,1.18576]
[1743957115081,0.04329974,82353.0,82352.0,1.18576]
[1743957116162,0.03115774,82353.0,82352.0,1.18576]
[1743957116980,0.03115774,82353.0,82349.0,0.182149]
[1743957116981,0.01454085,82352.0,82349.0,0.182149]
[1743957117173,0.01454085,82352.0,82350.0,0.13712]
[1743957117579,0.01145382,82351.0,82350.0,0.13712]
[1743957117721,0.01145382,82351.0,82350.0,0.149263]
[1743957117921,0.00516692,82353.0,82352.0,0.012142]
[1743957118378,0.01662452,82353.0,82352.0,0.012142]
[1743957119007,0.18662552,82353.0,82350.0,0.13712]
[1743957119319,0.01662452,82353.0,82350.0,0.13712]
[1743957120017,0.170001,82352.0,82350.0,0.13712]
[1743957120134,0.02876652,82353.0,82350.0,0.13712]
[1743957120334,0.01145382,82351.0,82350.0,0.13712]
[1743957120534,0.01730892,82353.0,82350.0,0.13712]
[1743957120753,0.0114576,82351.0,82350.0,0.13712]
[1743957120960,0.01730892,82353.0,82350.0,0.13712]
[1743957121312,0.00516692,82353.0,82350.0,0.13712]
[1743957121508,0.01145382,82352.0,82350.0,0.13712]
[1743957125176,0.01145382,82352.0,82350.0,0.307124]
[1743957125386,0.01145382,82352.0,82350.0,0.319599]
[1743957126419,0.01145382,82352.0,82351.0,0.18044597]
[1743957126747,0.00020692,82353.0,82352.0,0.182143]
[1743957126922,0.00020692,82353.0,82352.0,0.30504597]
[1743957127124,0.04020692,82353.0,82352.0,0.35284597]
[1743957127400,0.00020692,82353.0,82352.0,0.35284597]
[1743957127764,0.00516692,82353.0,82352.0,0.17070297]
[1743957128071,0.00516692,82353.0,82350.0,0.319599]
[1743957128072,0.00496,82351.0,82350.0,0.000332]
[1743957128294,0.00496,82351.0,82350.0,0.137452]
[1743957128495,0.0285569,82351.0,82350.0,0.137452]
[1743957128790,0.0285569,82351.0,82350.0,0.000332]
[1743957128986,0.0285569,82351.0,82350.0,0.137452]
[1743957129491,0.0285569,82351.0,82350.0,0.000332]
[1743957140202,0.0164139,82351.0,82350.0,0.000332]
[1743957143473,0.0164139,82351.0,82350.0,0.000372]
[1743957145523,0.0285569,82351.0,82350.0,0.137492]
[1743957156981,0.38309775,82351.0,82350.0,0.000372]
[1743957164260,0.62309775,82351.0,82350.0,0.000372]
[1743957164442,0.38309775,82351.0,82350.0,0.000372]
[1743957170650,0.02599475,82351.0,82350.0,0.000372]
[1743957170822,0.0164139,82351.0,82350.0,0.049572]
[1743957171072,0.0114539,82351.0,82350.0,0.049572]
[1743957171273,0.0164139,82351.0,82350.0,0.049572]
[1743957171438,0.0285569,82351.0,82350.0,0.049572]
[1743957177105,0.3685569,82351.0,82350.0,0.049572]
[1743957181896,0.3685569,82351.0,82350.0,0.000372]
[1743957181897,0.38309775,82351.0,82350.0,0.000372]
[1743957182048,0.38309775,82351.0,82350.0,0.137452]
[1743957182633,0.3564139,82351.0,82350.0,0.183952]
[1743957183643,0.3685569,82351.0,82350.0,0.183952]
[1743957186136,0.38309775,82351.0,82350.0,0.137452]
[1743957186332,0.38309775,82351.0,82350.0,0.000372]
[1743957190072,0.63309775,82351.0,82350.0,0.000372]
[1743957190276,0.38309775,82351.0,82350.0,0.000372]
[1743957192257,0.38309775,82351.0,82350.0,0.046672]
[1743957192459,0.3564139,82351.0,82350.0,0.046672]
[1743957193078,0.3685569,82351.0,82350.0,0.046672]
[1743957196361,0.3564139,82351.0,82350.0,0.046672]
[1743957198222,0.3685569,82351.0,82350.0,0.046672]
[1743957202232,0.6285569,82351.0,82350.0,0.046672]
[1743957202437,0.3685569,82351.0,82350.0,0.046672]
[1743957204149,0.38309775,82351.0,82350.0,0.046672]
[1743957204324,0.38309775,82351.0,82350.0,0.000372]
[1743957206009,0.38409775,82351.0,82350.0,0.000372]
[1743957214646,0.37195475,82351.0,82350.0,0.000372]
[1743957214822,0.37195475,82351.0,82350.0,0.048372]
[1743957218308,0.38409775,82351.0,82350.0,0.048372]
[1743957219532,0.37195475,82351.0,82350.0,0.048372]
[1743957220347,0.03195475,82351.0,82350.0,0.048372]
[1743957220546,0.21410175,82351.0,82350.0,0.048372]
[1743957223803,0.03195475,82351.0,82350.0,0.048372]
[1743957225001,0.03195475,82351.0,82350.0,0.095472]
[1743957226907,0.02050085,82351.0,82350.0,0.095472]
[1743957227115,0.03186538,82351.0,82350.0,0.095472]
[1743957227789,0.04400838,82351.0,82350.0,0.095472]
[1743957228939,0.04400838,82351.0,82350.0,0.185412]
[1743957230567,0.04400838,82351.0,82350.0,0.137412]
[1743957230986,0.04400838,82351.0,82350.0,0.000372]
[1743957231199,0.53931135,82351.0,82350.0,0.000372]
[1743957234719,0.38400838,82351.0,82350.0,0.000372]
[1743957234952,0.36946753,82351.0,82350.0,0.000372]
[1743957235157,0.38102111,82351.0,82350.0,0.000372]
[1743957235361,0.36648026,82351.0,82350.0,0.000372]
[1743957235515,0.38102111,82351.0,82350.0,0.000372]
[1743957244260,0.38381353,82351.0,82350.0,0.000372]
[1743957249193,0.01712968,82351.0,82350.0,0.000372]
[1743957249330,0.01712968,82351.0,82350.0,0.104115]
[1743957249536,0.01712968,82351.0,82350.0,0.091972]
[1743957253175,0.21381753,82351.0,82350.0,0.229012]
[1743957253601,0.21381753,82351.0,82350.0,0.091972]
[1743957253801,0.21381753,82351.0,82350.0,0.137412]
[1743957253976,0.21381753,82351.0,82350.0,0.000372]
[1743957254184,0.55381753,82351.0,82350.0,0.000372]
[1743957255216,0.6767205,82351.0,82350.0,0.000372]
[1743957258309,0.69943887,82351.0,82350.0,0.000372]
[1743957259372,0.6767205,82351.0,82350.0,0.000372]
[1743957260712,0.67390921,82351.0,82350.0,0.000372]
[1743957261979,0.67669792,82351.0,82350.0,0.000372]
[1743957262667,0.69926005,82351.0,82350.0,0.000372]
[1743957264126,0.95926005,82351.0,82350.0,0.000372]
[1743957264359,0.69926005,82351.0,82350.0,0.000372]
[1743957266181,0.69926005,82351.0,82331.0,0.0455661]
[1743957266182,0.527148,82332.0,82331.0,0.0001661]
[1743957266330,0.54168885,82332.0,82331.0,0.0001661]
[1743957266530,0.55290838,82332.0,82331.0,0.0001661]
[1743957266733,0.57547051,82332.0,82331.0,0.0001661]
[1743957271942,0.69837348,82332.0,82331.0,0.0001661]
[1743957275729,0.52717,82322.0,82321.0,0.0001661]
[1743957275941,0.66461382,82322.0,82321.0,0.00030273]
[1743957276077,0.67549964,82322.0,82321.0,0.00030273]
[1743957276289,0.527188,82314.0,82313.0,0.0003316]
[1743957276499,0.66463182,82314.0,82313.0,0.00078807]
[1743957276890,0.53677285,82312.0,82311.0,0.01736304]
[1743957277078,0.65967582,82312.0,82311.0,0.01736304]
[1743957277375,0.67551622,82312.0,82311.0,0.01736304]
[1743957277588,0.69807835,82312.0,82311.0,0.01736304]
[1743957277884,0.70940548,82312.0,82311.0,0.01044485]
[1743957279657,0.72180199,82312.0,82311.0,0.01044485]
[1743957279829,0.59889902,82312.0,82311.0,0.05574485]
[1743957280037,0.58435817,82312.0,82311.0,0.05574485]
[1743957280275,0.58435817,82312.0,82311.0,0.10534485]
[1743957280654,0.59889902,82312.0,82311.0,0.10534485]
[1743957281258,0.58757189,82312.0,82311.0,0.10534485]
[1743957281940,0.56500976,82312.0,82311.0,0.10534485]
[1743957283112,0.0158404,82312.0,82311.0,0.24039682]
[1743957283316,0.0158404,82312.0,82311.0,0.10534485]
[1743957283516,0.0279884,82312.0,82311.0,0.10534485]
[1743957284144,0.0158404,82312.0,82311.0,0.10534485]
[1743957286422,0.0279884,82312.0,82311.0,0.10534485]
[1743957286654,0.3679884,82312.0,82311.0,0.10538485]
[1743957288685,0.38252925,82312.0,82311.0,0.10538485]
[1743957290454,0.38252925,82312.0,82311.0,0.10555095]
[1743957293833,0.39387035,82312.0,82311.0,0.10555095]
[1743957294574,0.39387035,82312.0,82311.0,0.24259095]
[1743957294723,0.41637518,82312.0,82311.0,0.24259095]
[1743957295886,0.41637518,82312.0,82311.0,0.10555095]
[1743957296006,0.41637518,82312.0,82311.0,0.24259095]
[1743957296412,0.40503408,82312.0,82311.0,0.24259095]
[1743957297268,0.40503408,82312.0,82311.0,0.10555095]
[1743957297482,0.40503408,82312.0,82311.0,0.24259095]
[1743957297913,0.03834523,82312.0,82311.0,0.24259095]
[1743957298115,0.03834523,82312.0,82311.0,0.25473995]
[1743957298407,0.02746483,82312.0,82311.0,0.25473995]
[1743957298582,0.01590545,82312.0,82311.0,0.25473995]
[1743957298812,0.01590545,82312.0,82311.0,0.24259095]
[1743957299594,0.03842526,82312.0,82311.0,0.24259095]
[1743957300558,0.13842526,82312.0,82311.0,0.24259095]
[1743957300762,0.03842526,82312.0,82311.0,0.24259095]
[1743957301393,0.05057326,82312.0,82311.0,0.24259095]
[1743957301794,0.03842526,82312.0,82311.0,0.24259095]
[1743957301979,0.04978364,82312.0,82311.0,0.24259095]
[1743957303365,0.03842526,82312.0,82311.0,0.24259095]
[1743957303700,0.03875746,82312.0,82311.0,0.24259095]
[1743957305093,0.05011615,82312.0,82311.0,0.24259095]
[1743957309050,0.06226415,82312.0,82311.0,0.24259095]
[1743957313179,0.05090546,82312.0,82311.0,0.24259095]
[1743957319653,0.06544631,82312.0,82311.0,0.24259095]
[1743957319871,0.06544631,82312.0,82311.0,0.19299095]
[1743957320067,0.06544631,82312.0,82311.0,0.01065095]
[1743957320640,0.40544631,82312.0,82311.0,0.01065095]
[1743957320844,0.52834928,82312.0,82311.0,0.01065095]
[1743957321418,0.52924928,82312.0,82311.0,0.01065095]
[1743957321829,0.54062776,82312.0,82311.0,0.01065095]
[1743957322594,0.54062776,82312.0,82311.0,0.0002061]
[1743957323104,0.53972776,82312.0,82311.0,0.0002061]
[1743957326686,0.52834928,82312.0,82311.0,0.0002061]
[1743957327190,0.52338928,82312.0,82311.0,0.0002061]
[1743957327391,0.39090546,82312.0,82311.0,0.0002061]
[1743957327894,0.40544631,82312.0,82311.0,0.0002061]
[1743957328632,0.3829265,82312.0,82311.0,0.0002061]
[1743957331408,0.39410922,82312.0,82311.0,0.0002061]
[1743957333467,0.02246037,82312.0,82311.0,0.0452061]
[1743957333616,0.19750437,82312.0,82311.0,0.0942061]
[1743957333942,0.20965237,82312.0,82311.0,0.0942061]
[1743957334320,0.54965237,82312.0,82311.0,0.0942061]
[1743957336518,0.56419322,82312.0,82311.0,0.0942061]
[1743957337132,0.56419322,82312.0,82311.0,0.2312461]
[1743957339593,0.54965237,82312.0,82311.0,0.2312461]
[1743957341234,0.53750437,82312.0,82311.0,0.2312461]
[1743957341446,0.54965237,82312.0,82311.0,0.2312461]
[1743957347191,0.55065237,82312.0,82311.0,0.2312461]
[1743957348370,0.56519322,82312.0,82311.0,0.2312461]
[1743957348933,0.56519322,82312.0,82311.0,0.0942061]
[1743957349333,0.56519322,82312.0,82311.0,0.0452061]
[1743957350899,0.83519322,82312.0,82311.0,0.0452061]
[1743957351074,0.56519322,82312.0,82311.0,0.0452061]
[1743957351481,0.56519322,82312.0,82311.0,0.0002061]
[1743957351848,0.68809619,82312.0,82311.0,1e-07]
[1743957352291,0.68899619,82312.0,82311.0,1e-07]
[1743957352497,0.54173985,82309.0,82308.0,7e-07]
[1743957352695,0.68683442,82309.0,82308.0,7e-07]
[1743957364948,0.522257,82301.0,82300.0,0.04824]
[1743957365125,0.68164174,82301.0,82300.0,0.04824]
[1743957369502,0.68264174,82301.0,82300.0,0.04824]
[1743957370609,0.68264174,82301.0,82300.0,4e-05]
[1743957375775,0.93264174,82301.0,82300.0,4e-05]
[1743957375977,0.68264174,82301.0,82300.0,4e-05]
[1743957376424,0.56469877,82301.0,82300.0,0.04894]
[1743957380040,0.56469877,82301.0,82300.0,0.0491061]
[1743957389047,0.80469877,82301.0,82300.0,0.0491061]
[1743957389243,0.56469877,82301.0,82300.0,0.0491061]
[1743957394006,0.56469877,82301.0,82300.0,0.0612561]
[1743957394007,0.02790092,82301.0,82300.0,0.0612561]
[1743957394204,0.02790092,82301.0,82300.0,0.0953061]
[1743957394352,0.00596,82301.0,82300.0,0.0953061]